[Event "Late-Titled-Tuesday-Blitz-December-26-2023"]
[Site "Chess.com"]
[Date "2023.12.26"]
[Round "5"]
[White "YouShallNotPass001"]
[Black "bazar-wokzal"]
[Result "0-1"]
[WhiteElo "2511"]
[BlackElo "2652"]
[TimeControl "180+1"]
[EndTime "14:54:49 PST"]
[Termination "bazar-wokzal won on time"]

1. Nf3 {[%clk 0:03:00.9]} 1... c5 {[%clk 0:02:58.2]} 2. g3 {[%clk 0:03:01.8]}
2... Nc6 {[%clk 0:02:57.7]} 3. Bg2 {[%clk 0:03:02.7]} 3... e5 {[%clk 0:02:57.5]}
4. O-O {[%clk 0:03:03.6]} 4... g5 {[%clk 0:02:56.6]} 5. c4 {[%clk 0:03:03]} 5...
g4 {[%clk 0:02:55.8]} 6. Ne1 {[%clk 0:03:02.3]} 6... h5 {[%clk 0:02:56]} 7. Nc3
{[%clk 0:02:54.1]} 7... h4 {[%clk 0:02:52.2]} 8. d3 {[%clk 0:02:47.2]} 8... d6
{[%clk 0:02:52.1]} 9. Nd5 {[%clk 0:02:46.4]} 9... Be6 {[%clk 0:02:48.5]} 10. Nc2
{[%clk 0:02:39.6]} 10... Bh6 {[%clk 0:02:42.7]} 11. b4 {[%clk 0:02:34.9]} 11...
cxb4 {[%clk 0:02:38.5]} 12. Ncxb4 {[%clk 0:02:30.7]} 12... Nxb4 {[%clk
0:02:37.2]} 13. Nxb4 {[%clk 0:02:28.8]} 13... Ne7 {[%clk 0:02:34.1]} 14. Bxh6
{[%clk 0:01:38.9]} 14... Rxh6 {[%clk 0:02:33.6]} 15. Bxb7 {[%clk 0:01:34.1]}
15... Rb8 {[%clk 0:02:32.6]} 16. Nc6 {[%clk 0:01:30.1]} 16... Nxc6 {[%clk
0:02:20.4]} 17. Bxc6+ {[%clk 0:01:29.6]} 17... Kf8 {[%clk 0:02:18.2]} 18. Qd2
{[%clk 0:01:26.9]} 18... Kg7 {[%clk 0:02:16.8]} 19. Rfb1 {[%clk 0:01:25.6]}
19... hxg3 {[%clk 0:02:12.8]} 20. fxg3 {[%clk 0:01:15.5]} 20... Rb6 {[%clk
0:02:02.6]} 21. Be4 {[%clk 0:01:08.2]} 21... f5 {[%clk 0:01:55.4]} 22. Bg2
{[%clk 0:00:55.4]} 22... f4 {[%clk 0:01:51.5]} 23. gxf4 {[%clk 0:00:50.9]} 23...
Qh4 {[%clk 0:01:48.5]} 24. Rxb6 {[%clk 0:00:43.5]} 24... axb6 {[%clk 0:01:43.6]}
25. fxe5 {[%clk 0:00:32.9]} 25... Qxh2+ {[%clk 0:01:42.8]} 26. Kf1 {[%clk
0:00:32.3]} 26... Qxe5 {[%clk 0:01:40.6]} 27. Rb1 {[%clk 0:00:18.1]} 27... Rf6+
{[%clk 0:01:35.8]} 28. Kg1 {[%clk 0:00:17.4]} 28... Qc5+ {[%clk 0:01:24.9]} 29.
e3 {[%clk 0:00:13.6]} 29... g3 {[%clk 0:01:21.3]} 30. Rb5 {[%clk 0:00:11.5]}
30... Qc7 {[%clk 0:01:03.5]} 31. Rg5+ {[%clk 0:00:11.6]} 31... Rg6 {[%clk
0:01:01.1]} 32. Qb2+ {[%clk 0:00:11.1]} 32... Kh6 {[%clk 0:01:01]} 33. Rxg6+
{[%clk 0:00:09]} 33... Kxg6 {[%clk 0:01:01.9]} 34. Qd4 {[%clk 0:00:07]} 34...
Qf7 {[%clk 0:00:52.9]} 35. Be4+ {[%clk 0:00:04.2]} 35... Kg5 {[%clk 0:00:50.2]}
36. Qb2 {[%clk 0:00:03.2]} 36... Bh3 {[%clk 0:00:46.2]} 37. Qe2 {[%clk
0:00:02.7]} 37... Qf6 {[%clk 0:00:40.8]} 38. d4 {[%clk 0:00:01.7]} 38... Kh4
{[%clk 0:00:33.5]} 39. Qf3 {[%clk 0:00:01.2]} 39... Qg5 {[%clk 0:00:29.6]} 0-1

[Event "Late-Titled-Tuesday-Blitz-December-26-2023"]
[Site "Chess.com"]
[Date "2023.12.26"]
[Round "5"]
[White "chenxiaoyuer"]
[Black "Misticpikachu"]
[Result "1/2-1/2"]
[WhiteElo "2712"]
[BlackElo "2473"]
[TimeControl "180+1"]
[EndTime "14:54:57 PST"]
[Termination "Game drawn - insufficient material"]

1. e4 {[%clk 0:03:00.9]} 1... c5 {[%clk 0:02:59.7]} 2. Nf3 {[%clk 0:02:58.6]}
2... e6 {[%clk 0:03:00.1]} 3. d4 {[%clk 0:02:59.1]} 3... cxd4 {[%clk 0:03:01]}
4. Nxd4 {[%clk 0:02:59.7]} 4... Nf6 {[%clk 0:03:01.7]} 5. Nc3 {[%clk 0:03:00.1]}
5... Nc6 {[%clk 0:03:02.4]} 6. Ndb5 {[%clk 0:03:00.6]} 6... Bb4 {[%clk 0:03:02]}
7. a3 {[%clk 0:02:59.8]} 7... Bxc3+ {[%clk 0:03:01]} 8. Nxc3 {[%clk 0:03:00.5]}
8... d5 {[%clk 0:03:01.8]} 9. exd5 {[%clk 0:03:00.3]} 9... exd5 {[%clk
0:03:02.7]} 10. Bd3 {[%clk 0:03:00.1]} 10... O-O {[%clk 0:03:03.6]} 11. O-O
{[%clk 0:03:00.6]} 11... d4 {[%clk 0:03:04.5]} 12. Ne2 {[%clk 0:03:00.4]} 12...
Bg4 {[%clk 0:03:05.1]} 13. h3 {[%clk 0:02:59.7]} 13... Bxe2 {[%clk 0:03:05.2]}
14. Bxe2 {[%clk 0:02:54.9]} 14... Qd6 {[%clk 0:03:02.4]} 15. Bf3 {[%clk
0:02:45.9]} 15... Ne5 {[%clk 0:02:55.2]} 16. Bxb7 {[%clk 0:02:36.3]} 16... Rab8
{[%clk 0:02:55.6]} 17. Bf3 {[%clk 0:02:35]} 17... Nxf3+ {[%clk 0:02:56]} 18.
Qxf3 {[%clk 0:02:35.2]} 18... Qc5 {[%clk 0:02:52]} 19. c3 {[%clk 0:02:25.2]}
19... dxc3 {[%clk 0:02:45.6]} 20. Qxc3 {[%clk 0:02:25.7]} 20... Qxc3 {[%clk
0:02:45.8]} 21. bxc3 {[%clk 0:02:26.6]} 21... Rb3 {[%clk 0:02:39.6]} 22. Be3
{[%clk 0:02:25.5]} 22... a6 {[%clk 0:02:36.2]} 23. Bd4 {[%clk 0:02:20.6]} 23...
Ne4 {[%clk 0:02:32.2]} 24. Rfb1 {[%clk 0:02:12.6]} 24... Rfb8 {[%clk 0:02:27.8]}
25. Rxb3 {[%clk 0:02:12.2]} 25... Rxb3 {[%clk 0:02:28.7]} 26. Re1 {[%clk
0:02:11.7]} 26... f5 {[%clk 0:02:27.7]} 27. f3 {[%clk 0:02:11]} 27... Nxc3
{[%clk 0:02:17.5]} 28. Re7 {[%clk 0:02:09.2]} 28... Kf8 {[%clk 0:02:13.8]} 29.
Bc5 {[%clk 0:01:54]} 29... Na4 {[%clk 0:01:53.8]} 30. Bd6 {[%clk 0:01:52.4]}
30... Rb6 {[%clk 0:01:38.1]} 31. Re4+ {[%clk 0:01:50.7]} 31... Rxd6 {[%clk
0:01:35.8]} 32. Rxa4 {[%clk 0:01:51.6]} 32... Kf7 {[%clk 0:01:32.3]} 33. Ra5
{[%clk 0:01:50.1]} 33... g6 {[%clk 0:01:31]} 34. Kf2 {[%clk 0:01:47.1]} 34...
Rd2+ {[%clk 0:01:26.4]} 35. Kg3 {[%clk 0:01:46.6]} 35... Rd6 {[%clk 0:01:26.5]}
36. Kf4 {[%clk 0:01:47.1]} 36... Kf6 {[%clk 0:01:26.9]} 37. h4 {[%clk
0:01:46.9]} 37... h6 {[%clk 0:01:26.8]} 38. g3 {[%clk 0:01:35.2]} 38... Rb6
{[%clk 0:01:17]} 39. g4 {[%clk 0:01:34]} 39... fxg4 {[%clk 0:01:14.6]} 40. fxg4
{[%clk 0:01:34.9]} 40... Rc6 {[%clk 0:01:08.4]} 41. Ra4 {[%clk 0:01:30.4]} 41...
Rb6 {[%clk 0:00:57.7]} 42. Rd4 {[%clk 0:01:29.7]} 42... Rc6 {[%clk 0:00:47.7]}
43. a4 {[%clk 0:01:26.7]} 43... Rb6 {[%clk 0:00:46.8]} 44. a5 {[%clk 0:01:24.2]}
44... Rc6 {[%clk 0:00:45.7]} 45. Rb4 {[%clk 0:01:21.7]} 45... Ke7 {[%clk
0:00:37.8]} 46. h5 {[%clk 0:01:17.7]} 46... gxh5 {[%clk 0:00:35.8]} 47. gxh5
{[%clk 0:01:13.7]} 47... Rc5 {[%clk 0:00:35.4]} 48. Rb7+ {[%clk 0:01:12.6]}
48... Kd8 {[%clk 0:00:28]} 49. Rb6 {[%clk 0:01:08.3]} 49... Rxh5 {[%clk
0:00:26]} 50. Rxa6 {[%clk 0:01:07.4]} 50... Kc7 {[%clk 0:00:26.6]} 51. Rg6
{[%clk 0:01:05.7]} 51... Kb7 {[%clk 0:00:26.6]} 52. a6+ {[%clk 0:01:04.5]} 52...
Ka7 {[%clk 0:00:26.7]} 53. Rf6 {[%clk 0:01:05.1]} 53... Rh1 {[%clk 0:00:26.7]}
54. Kg4 {[%clk 0:01:04.6]} 54... h5+ {[%clk 0:00:25.4]} 55. Kg5 {[%clk 0:01:05]}
55... h4 {[%clk 0:00:25.2]} 56. Kg4 {[%clk 0:01:05.2]} 56... h3 {[%clk
0:00:23.6]} 57. Kg3 {[%clk 0:01:05.8]} 57... h2 {[%clk 0:00:22.1]} 58. Kg2
{[%clk 0:01:06.4]} 58... Rg1+ {[%clk 0:00:22.4]} 59. Kxh2 {[%clk 0:01:06.6]}
59... Ra1 {[%clk 0:00:21.9]} 60. Kg3 {[%clk 0:01:06.9]} 60... Rxa6 {[%clk
0:00:21]} 61. Rf7+ {[%clk 0:01:07.5]} 61... Kb6 {[%clk 0:00:21.2]} 62. Kf4
{[%clk 0:01:08.4]} 62... Ra1 {[%clk 0:00:21.2]} 63. Ke4 {[%clk 0:01:08.1]} 63...
Re1+ {[%clk 0:00:20.9]} 64. Kd4 {[%clk 0:01:08.2]} 64... Rd1+ {[%clk 0:00:21.4]}
65. Kc4 {[%clk 0:01:08.6]} 65... Rc1+ {[%clk 0:00:21.5]} 66. Kb3 {[%clk
0:01:09.2]} 66... Rb1+ {[%clk 0:00:21.7]} 67. Kc3 {[%clk 0:01:09.6]} 67... Rc1+
{[%clk 0:00:21.7]} 68. Kb2 {[%clk 0:01:10.2]} 68... Rh1 {[%clk 0:00:21.7]} 69.
Rf6+ {[%clk 0:01:10.2]} 69... Kc5 {[%clk 0:00:22.3]} 70. Rf2 {[%clk 0:01:10.9]}
70... Rh4 {[%clk 0:00:21.7]} 71. Rd2 {[%clk 0:01:10.9]} 71... Rd4 {[%clk
0:00:22]} 72. Rxd4 {[%clk 0:01:09.3]} 72... Kxd4 {[%clk 0:00:20.8]} 1/2-1/2

[Event "Late-Titled-Tuesday-Blitz-December-26-2023"]
[Site "Chess.com"]
[Date "2023.12.26"]
[Round "5"]
[White "Onthequiet"]
[Black "IngOscarArdila"]
[Result "1-0"]
[WhiteElo "2429"]
[BlackElo "2319"]
[TimeControl "180+1"]
[EndTime "14:54:58 PST"]
[Termination "Onthequiet won by resignation"]

1. d4 {[%clk 0:02:55.4]} 1... Nf6 {[%clk 0:02:59.8]} 2. Nf3 {[%clk 0:02:49.9]}
2... e6 {[%clk 0:03:00.1]} 3. c4 {[%clk 0:02:48.6]} 3... Be7 {[%clk 0:03:00.5]}
4. Nc3 {[%clk 0:02:46.3]} 4... O-O {[%clk 0:03:00.7]} 5. Qc2 {[%clk 0:02:40.1]}
5... d6 {[%clk 0:03:00.2]} 6. g3 {[%clk 0:02:34.4]} 6... Nbd7 {[%clk 0:03:00.3]}
7. Bg2 {[%clk 0:02:34.4]} 7... c6 {[%clk 0:03:00.7]} 8. O-O {[%clk 0:02:34.3]}
8... Qc7 {[%clk 0:03:00.5]} 9. b3 {[%clk 0:02:33.9]} 9... Re8 {[%clk 0:03:00.3]}
10. Bb2 {[%clk 0:02:33.6]} 10... Nf8 {[%clk 0:03:00.5]} 11. e4 {[%clk
0:02:30.2]} 11... Ng6 {[%clk 0:02:57.8]} 12. Rfe1 {[%clk 0:02:28.8]} 12... e5
{[%clk 0:02:57.9]} 13. d5 {[%clk 0:02:27]} 13... cxd5 {[%clk 0:02:56.4]} 14.
exd5 {[%clk 0:02:21.3]} 14... a6 {[%clk 0:02:53.5]} 15. a4 {[%clk 0:02:19.9]}
15... Bg4 {[%clk 0:02:51.8]} 16. h3 {[%clk 0:02:17.8]} 16... Bd7 {[%clk
0:02:51.5]} 17. a5 {[%clk 0:02:13.1]} 17... Qc8 {[%clk 0:02:47.7]} 18. Kh2
{[%clk 0:02:11.5]} 18... Bf5 {[%clk 0:02:47.7]} 19. Qc1 {[%clk 0:02:04.9]} 19...
Bd8 {[%clk 0:02:37.8]} 20. Ng5 {[%clk 0:02:00.3]} 20... h6 {[%clk 0:02:34.8]}
21. Nge4 {[%clk 0:01:59.9]} 21... Nxe4 {[%clk 0:02:35.1]} 22. Nxe4 {[%clk
0:01:57.2]} 22... b6 {[%clk 0:02:24.6]} 23. Nxd6 {[%clk 0:01:55]} 23... Qd7
{[%clk 0:02:23.6]} 24. Nxe8 {[%clk 0:01:52.8]} 24... Qxe8 {[%clk 0:02:23.9]} 25.
f4 {[%clk 0:01:39.1]} 25... e4 {[%clk 0:02:18]} 26. axb6 {[%clk 0:01:28.8]}
26... Bxb6 {[%clk 0:02:15.2]} 27. Qc3 {[%clk 0:01:28.9]} 27... f6 {[%clk
0:02:11.5]} 28. c5 {[%clk 0:01:21.4]} 28... Rc8 {[%clk 0:02:11.2]} 29. b4 {[%clk
0:01:21]} 29... a5 {[%clk 0:01:58.6]} 30. Qb3 {[%clk 0:01:20]} 30... Ba7 {[%clk
0:01:50.6]} 31. Rxa5 {[%clk 0:01:15]} 31... Bb8 {[%clk 0:01:49.1]} 32. d6+
{[%clk 0:01:08.7]} 32... Kh7 {[%clk 0:01:48]} 33. Qd5 {[%clk 0:01:02.9]} 33...
Bd7 {[%clk 0:01:28]} 34. Qxe4 {[%clk 0:00:59]} 34... Qf7 {[%clk 0:01:25.8]} 35.
Qd5 {[%clk 0:00:53.3]} 35... Qf8 {[%clk 0:01:21.1]} 36. b5 {[%clk 0:00:39.6]}
36... Qd8 {[%clk 0:01:18]} 37. Bc3 {[%clk 0:00:35.7]} 37... Nf8 {[%clk 0:00:57]}
38. Re7 {[%clk 0:00:33.3]} 38... Be6 {[%clk 0:00:54.7]} 39. Rxe6 {[%clk
0:00:30.4]} 39... Nxe6 {[%clk 0:00:53.6]} 40. Qxe6 {[%clk 0:00:30.8]} 40... Rxc5
{[%clk 0:00:53.6]} 41. Be4+ {[%clk 0:00:26.4]} 41... Kh8 {[%clk 0:00:51.6]} 42.
Bd4 {[%clk 0:00:23.9]} 42... f5 {[%clk 0:00:17.3]} 43. Bxc5 {[%clk 0:00:21.7]}
43... fxe4 {[%clk 0:00:17.4]} 44. Ra8 {[%clk 0:00:21.2]} 44... Qc8 {[%clk
0:00:14.4]} 45. Qxc8+ {[%clk 0:00:20.6]} 1-0

[Event "Late-Titled-Tuesday-Blitz-December-26-2023"]
[Site "Chess.com"]
[Date "2023.12.26"]
[Round "5"]
[White "MasterofMasters2006"]
[Black "FREZZY23"]
[Result "0-1"]
[WhiteElo "2076"]
[BlackElo "2391"]
[TimeControl "180+1"]
[EndTime "14:55:00 PST"]
[Termination "FREZZY23 won by resignation"]

1. d4 {[%clk 0:02:34.8]} 1... Nf6 {[%clk 0:02:56.2]} 2. c4 {[%clk 0:02:34.8]}
2... g6 {[%clk 0:02:56.2]} 3. Nc3 {[%clk 0:02:33.2]} 3... Bg7 {[%clk 0:02:56.3]}
4. e4 {[%clk 0:02:32.7]} 4... d6 {[%clk 0:02:56.6]} 5. f3 {[%clk 0:02:33]} 5...
O-O {[%clk 0:02:56.2]} 6. Be3 {[%clk 0:02:33.6]} 6... c5 {[%clk 0:02:56.4]} 7.
d5 {[%clk 0:02:33.2]} 7... e6 {[%clk 0:02:51.6]} 8. Qd2 {[%clk 0:02:28.7]} 8...
exd5 {[%clk 0:02:51.6]} 9. cxd5 {[%clk 0:02:29.6]} 9... a6 {[%clk 0:02:50.7]}
10. a4 {[%clk 0:02:28.8]} 10... Qa5 {[%clk 0:02:50.3]} 11. Nge2 {[%clk
0:02:17.7]} 11... b5 {[%clk 0:02:37.2]} 12. Nc1 {[%clk 0:02:08.9]} 12... b4
{[%clk 0:02:30.8]} 13. N3e2 {[%clk 0:02:05.7]} 13... Nbd7 {[%clk 0:02:29.1]} 14.
Ng3 {[%clk 0:02:04.7]} 14... Qc7 {[%clk 0:02:26.1]} 15. Be2 {[%clk 0:02:05.1]}
15... a5 {[%clk 0:02:25.7]} 16. O-O {[%clk 0:02:04.7]} 16... c4 {[%clk
0:02:23.8]} 17. Qc2 {[%clk 0:01:57.4]} 17... Ba6 {[%clk 0:02:21.7]} 18. Rd1
{[%clk 0:01:47.1]} 18... Rac8 {[%clk 0:02:20.6]} 19. Bf1 {[%clk 0:01:44.9]}
19... Ne5 {[%clk 0:02:18.7]} 20. Nce2 {[%clk 0:01:44.9]} 20... Nfd7 {[%clk
0:02:14.5]} 21. Nd4 {[%clk 0:01:44.2]} 21... Nd3 {[%clk 0:02:13]} 22. Nc6 {[%clk
0:01:34.5]} 22... N7e5 {[%clk 0:02:09.2]} 23. Nxe5 {[%clk 0:01:14.7]} 23... Bxe5
{[%clk 0:02:04.4]} 24. f4 {[%clk 0:01:09.9]} 24... Bxf4 {[%clk 0:01:48.2]} 25.
Bxf4 {[%clk 0:01:06.8]} 25... Nxf4 {[%clk 0:01:47.1]} 26. Rac1 {[%clk
0:01:07.4]} 26... Qa7+ {[%clk 0:01:37.9]} 27. Qf2 {[%clk 0:01:05.4]} 27... Qxf2+
{[%clk 0:01:35.4]} 28. Kxf2 {[%clk 0:01:05.6]} 28... Nd3+ {[%clk 0:01:35.3]} 29.
Bxd3 {[%clk 0:01:05.9]} 29... cxd3 {[%clk 0:01:36.2]} 30. Ke3 {[%clk 0:01:04]}
30... Rc2 {[%clk 0:01:31.5]} 31. b3 {[%clk 0:00:53.3]} 31... Rc3 {[%clk
0:01:21.8]} 32. Rb1 {[%clk 0:00:47.6]} 32... Rfc8 {[%clk 0:01:16.7]} 33. Nf1
{[%clk 0:00:42]} 33... Rc2 {[%clk 0:01:11.8]} 34. Rd2 {[%clk 0:00:41]} 34... Kg7
{[%clk 0:00:59.2]} 35. g4 {[%clk 0:00:30.4]} 35... Kf6 {[%clk 0:00:56]} 36. h4
{[%clk 0:00:29.5]} 36... Ke5 {[%clk 0:00:52.6]} 37. Rbd1 {[%clk 0:00:18.1]}
37... f5 {[%clk 0:00:49.8]} 38. gxf5 {[%clk 0:00:17.5]} 38... gxf5 {[%clk
0:00:49.9]} 39. Nh2 {[%clk 0:00:17.4]} 39... fxe4 {[%clk 0:00:47.8]} 40. Ng4+
{[%clk 0:00:16.9]} 40... Kxd5 {[%clk 0:00:48.1]} 41. Nf6+ {[%clk 0:00:16.6]}
41... Ke5 {[%clk 0:00:48.1]} 42. Nxe4 {[%clk 0:00:15.9]} 42... d5 {[%clk
0:00:47.8]} 43. Ng5 {[%clk 0:00:14.5]} 43... Rxd2 {[%clk 0:00:46.7]} 44. Rxd2
{[%clk 0:00:13.8]} 44... h6 {[%clk 0:00:45.5]} 45. Nf3+ {[%clk 0:00:13.1]} 45...
Kd6 {[%clk 0:00:43.6]} 46. Kd4 {[%clk 0:00:12.7]} 46... Rc3 {[%clk 0:00:40.6]}
47. Rb2 {[%clk 0:00:10.4]} 47... Rc2 {[%clk 0:00:39.5]} 48. Rb1 {[%clk
0:00:10.4]} 48... Rf2 {[%clk 0:00:38.8]} 49. Ne5 {[%clk 0:00:08.6]} 49... Rf4+
{[%clk 0:00:38.8]} 50. Ke3 {[%clk 0:00:05.9]} 50... Kxe5 {[%clk 0:00:39.3]} 0-1

[Event "Late-Titled-Tuesday-Blitz-December-26-2023"]
[Site "Chess.com"]
[Date "2023.12.26"]
[Round "5"]
[White "SnekkerAndersen"]
[Black "SergioMoralesG"]
[Result "1-0"]
[WhiteElo "2571"]
[BlackElo "2410"]
[TimeControl "180+1"]
[EndTime "14:55:01 PST"]
[Termination "SnekkerAndersen won by checkmate"]

1. a3 {[%clk 0:03:00.9]} 1... d5 {[%clk 0:02:58.3]} 2. h3 {[%clk 0:03:01.8]}
2... e5 {[%clk 0:02:57.7]} 3. d3 {[%clk 0:02:56.6]} 3... Nf6 {[%clk 0:02:54.3]}
4. e3 {[%clk 0:02:54.5]} 4... Be7 {[%clk 0:02:49]} 5. Nc3 {[%clk 0:02:53.6]}
5... d4 {[%clk 0:02:46.2]} 6. Ne4 {[%clk 0:02:52.9]} 6... Nxe4 {[%clk
0:02:43.7]} 7. dxe4 {[%clk 0:02:52.7]} 7... c5 {[%clk 0:02:37.8]} 8. Nf3 {[%clk
0:02:50.2]} 8... Nc6 {[%clk 0:02:36.9]} 9. Bc4 {[%clk 0:02:43]} 9... Qc7 {[%clk
0:02:26.1]} 10. O-O {[%clk 0:02:41.3]} 10... Bd7 {[%clk 0:02:21.6]} 11. Bd2
{[%clk 0:02:34.9]} 11... O-O {[%clk 0:02:03.9]} 12. exd4 {[%clk 0:02:22.5]}
12... cxd4 {[%clk 0:02:02.8]} 13. Qe2 {[%clk 0:02:12.8]} 13... Na5 {[%clk
0:01:50.4]} 14. Bd3 {[%clk 0:02:10.7]} 14... f6 {[%clk 0:01:43.4]} 15. Nh4
{[%clk 0:02:08.9]} 15... Rac8 {[%clk 0:01:41.1]} 16. Nf5 {[%clk 0:02:07.1]}
16... Bxf5 {[%clk 0:01:31.9]} 17. exf5 {[%clk 0:02:08]} 17... Nc4 {[%clk
0:01:32]} 18. Bc1 {[%clk 0:02:07]} 18... Nd6 {[%clk 0:01:16.4]} 19. Qg4 {[%clk
0:02:01.8]} 19... Rfe8 {[%clk 0:01:09.1]} 20. Re1 {[%clk 0:01:55.7]} 20... Bf8
{[%clk 0:01:06.1]} 21. f3 {[%clk 0:01:52.2]} 21... e4 {[%clk 0:00:58.7]} 22.
fxe4 {[%clk 0:01:47.4]} 22... Nf7 {[%clk 0:00:58.6]} 23. Bf4 {[%clk 0:01:45.5]}
23... Bd6 {[%clk 0:00:57.3]} 24. Rf1 {[%clk 0:00:55.6]} 24... Bxf4 {[%clk
0:00:54.3]} 25. Qxf4 {[%clk 0:00:56.5]} 25... Qxf4 {[%clk 0:00:49.6]} 26. Rxf4
{[%clk 0:00:57.4]} 26... Ne5 {[%clk 0:00:50.2]} 27. Rf2 {[%clk 0:00:51.5]} 27...
Rc5 {[%clk 0:00:46.6]} 28. Rd2 {[%clk 0:00:51.1]} 28... Rec8 {[%clk 0:00:43.2]}
29. Rad1 {[%clk 0:00:51.1]} 29... h6 {[%clk 0:00:38.6]} 30. Kf2 {[%clk
0:00:48.3]} 30... Kf8 {[%clk 0:00:34.1]} 31. Re1 {[%clk 0:00:48.3]} 31... Ke7
{[%clk 0:00:33.4]} 32. Ke2 {[%clk 0:00:47.6]} 32... Kd6 {[%clk 0:00:28.1]} 33.
Kd1 {[%clk 0:00:47]} 33... Nf7 {[%clk 0:00:27.7]} 34. h4 {[%clk 0:00:31.4]}
34... Ke5 {[%clk 0:00:26.9]} 35. Kc1 {[%clk 0:00:30.7]} 35... Nd6 {[%clk
0:00:24.9]} 36. Kb1 {[%clk 0:00:30.8]} 36... a5 {[%clk 0:00:23.6]} 37. g3 {[%clk
0:00:24.2]} 37... b5 {[%clk 0:00:22.3]} 38. Red1 {[%clk 0:00:23]} 38... Rb8
{[%clk 0:00:21.8]} 39. Bf1 {[%clk 0:00:21.6]} 39... Nxe4 {[%clk 0:00:17]} 40.
Rxd4 {[%clk 0:00:20.6]} 40... b4 {[%clk 0:00:13.8]} 41. Bg2 {[%clk 0:00:19.7]}
41... Nxg3 {[%clk 0:00:11.5]} 42. Rg4 {[%clk 0:00:15.2]} 42... Nxf5 {[%clk
0:00:10.7]} 43. Re4# {[%clk 0:00:15.1]} 1-0

[Event "Late-Titled-Tuesday-Blitz-December-26-2023"]
[Site "Chess.com"]
[Date "2023.12.26"]
[Round "5"]
[White "DanielNaroditsky"]
[Black "Dedic8"]
[Result "1-0"]
[WhiteElo "3111"]
[BlackElo "2843"]
[TimeControl "180+1"]
[EndTime "14:55:08 PST"]
[Termination "DanielNaroditsky won by checkmate"]

1. e4 {[%clk 0:02:42.8]} 1... e5 {[%clk 0:03:00]} 2. Nf3 {[%clk 0:02:42.4]} 2...
Nc6 {[%clk 0:02:59.8]} 3. Nc3 {[%clk 0:02:43.3]} 3... Nf6 {[%clk 0:02:59.6]} 4.
g3 {[%clk 0:02:38.7]} 4... Bc5 {[%clk 0:02:56.1]} 5. Bg2 {[%clk 0:02:34.2]} 5...
d6 {[%clk 0:02:56.2]} 6. d3 {[%clk 0:02:33.6]} 6... a5 {[%clk 0:02:56.3]} 7. O-O
{[%clk 0:02:28.7]} 7... O-O {[%clk 0:02:56.4]} 8. Be3 {[%clk 0:02:27.9]} 8...
Bxe3 {[%clk 0:02:33.4]} 9. fxe3 {[%clk 0:02:28.8]} 9... Ne7 {[%clk 0:02:31]} 10.
Nh4 {[%clk 0:02:27.2]} 10... Ng6 {[%clk 0:02:24.8]} 11. Nf5 {[%clk 0:02:25.9]}
11... Be6 {[%clk 0:02:15.6]} 12. Qf3 {[%clk 0:02:18.7]} 12... c6 {[%clk
0:01:57.9]} 13. h4 {[%clk 0:02:02]} 13... h5 {[%clk 0:01:35.8]} 14. Bh3 {[%clk
0:02:01.1]} 14... d5 {[%clk 0:01:31.6]} 15. Rad1 {[%clk 0:01:44.3]} 15... b5
{[%clk 0:01:14.4]} 16. exd5 {[%clk 0:01:33.7]} 16... Bxd5 {[%clk 0:01:05.7]} 17.
Nxd5 {[%clk 0:01:22.3]} 17... cxd5 {[%clk 0:01:05.1]} 18. e4 {[%clk 0:01:09.5]}
18... dxe4 {[%clk 0:00:58.9]} 19. dxe4 {[%clk 0:01:10.4]} 19... Qb6+ {[%clk
0:00:59.2]} 20. Kg2 {[%clk 0:01:06.8]} 20... Rfd8 {[%clk 0:00:56.1]} 21. Ne3
{[%clk 0:00:56.9]} 21... Ne7 {[%clk 0:00:35]} 22. c3 {[%clk 0:00:40.3]} 22...
Rxd1 {[%clk 0:00:27.9]} 23. Rxd1 {[%clk 0:00:41.2]} 23... Rd8 {[%clk 0:00:28.3]}
24. Kf1 {[%clk 0:00:14.4]} 24... b4 {[%clk 0:00:26.4]} 25. Bg2 {[%clk
0:00:03.6]} 25... bxc3 {[%clk 0:00:25]} 26. bxc3 {[%clk 0:00:03.8]} 26... Rxd1+
{[%clk 0:00:11.6]} 27. Nxd1 {[%clk 0:00:04.7]} 27... Qb1 {[%clk 0:00:10.5]} 28.
Qe2 {[%clk 0:00:05.4]} 28... Ng4 {[%clk 0:00:07.5]} 29. Bf3 {[%clk 0:00:04.3]}
29... Nf6 {[%clk 0:00:03]} 30. Kg2 {[%clk 0:00:04.9]} 30... Qb6 {[%clk
0:00:02.5]} 31. Ne3 {[%clk 0:00:04.3]} 31... Qc5 {[%clk 0:00:02.5]} 32. Qd3
{[%clk 0:00:03.7]} 32... g6 {[%clk 0:00:01.9]} 33. c4 {[%clk 0:00:03.6]} 33...
Kg7 {[%clk 0:00:01.8]} 34. Qe2 {[%clk 0:00:02.9]} 34... Qd4 {[%clk 0:00:01.9]}
35. Nc2 {[%clk 0:00:03.6]} 35... Qc5 {[%clk 0:00:02.3]} 36. Ne3 {[%clk
0:00:04.2]} 36... Ne8 {[%clk 0:00:02.6]} 37. g4 {[%clk 0:00:03.4]} 37... hxg4
{[%clk 0:00:02.6]} 38. Nxg4 {[%clk 0:00:04.1]} 38... Nd6 {[%clk 0:00:03.2]} 39.
Qd2 {[%clk 0:00:04.1]} 39... Nxc4 {[%clk 0:00:03.1]} 40. Qh6+ {[%clk 0:00:04.3]}
40... Kg8 {[%clk 0:00:02.7]} 41. Nf6# {[%clk 0:00:05.2]} 1-0